Cogmind - Beta 16 --- EXPLORER MODE // 2026.02.03 @ 18:23:41 Player: NeoBioHazard Result: Destroyed by D-53 Grenadier with Mini Grenade Launcher Performance ------------- Evolutions (0) 0 Regions Visited (2) 400 Robots Destroyed (2) 10 Value Destroyed (20) 20 Prototype IDs (0) 0 Alien Tech Used (0) 0 Bonus (0) 0 TOTAL SCORE: 430 Bonus ------- None Cogmind --------- Core Integrity 0/250 Matter 289/300 Energy 100/100 System Corruption 2% Temperature Cool (0) Movement Walking (190) Ox1 Location -10/Mines Parts ------- > --- POWER (1) -------- (None) > --- PROPULSION (2) --- Aluminum Leg > --- UTILITY (3) ------ Medium Storage Unit Structural Scanner > --- WEAPON (2) ------- (None) > --- INVENTORY (10) --- Experimental Sensor Array Peak State ------------ > --- POWER ------------ Ion Engine > --- PROPULSION ------- Aluminum Leg Aluminum Leg > --- UTILITY ---------- Medium Storage Unit Structural Scanner Seismic Detector > --- WEAPON ----------- Assault Rifle Assault Rifle > --- INVENTORY -------- Light Ion Engine Experimental Sensor Array Light Assault Rifle [Rating: 9] Favorites ----------- Power Ion Engine Engine Ion Engine Propulsion Aluminum Leg Leg Aluminum Leg Utility Medium Storage Unit Device Structural Scanner Storage Medium Storage Unit Weapon Assault Rifle Ballistic Gun Assault Rifle Build | -11 -10 -10 ------- Run | Yrd Mat Min Slots Evolved 1 | . 1 . Power . | . . . Propulsion . | . . . Utility 1 | . 1 . Weapon . | . . . Parts Attached 11 | 7 1 3 Power 2 | 1 . 1 Engine 2 | 1 . 1 Core . | . . . Reactor . | . . . Propulsion 2 | 2 . . Treads . | . . . Leg 2 | 2 . . Wheel . | . . . Hover . | . . . Flight . | . . . Utility 4 | 2 1 1 Device 3 | 1 1 1 Storage 1 | 1 . . Processor . | . . . Hackware . | . . . Protection . | . . . Artifact . | . . . Weapon 3 | 2 . 1 Energy Gun . | . . . Energy Cannon . | . . . Ballistic Gun 3 | 2 . 1 Ballistic Cannon . | . . . Launcher . | . . . Special Weapon . | . . . Impact Weapon . | . . . Slashing Weapon . | . . . Piercing Weapon . | . . . Special Melee Weapon . | . . . Unidentified Prototypes . | . . . Parts Lost 8 | . . 8 Power 2 | . . 2 Propulsion 1 | . . 1 Utility 2 | . . 2 Weapon 3 | . . 3 Highest Loss Streak 5 | . . 5 To Critical Strikes . | . . . Average Backups 2 | 1 2 2 Power . | . 1 . Propulsion . | . . . Utility . | . . . Weapon . | . 1 . Tool/Special . | . . . Unused Backups 1 | . . 1 Power . | . . . Propulsion . | . . . Utility 1 | . . 1 Weapon . | . . . Tool/Special . | . . . Average Slot Usage (%) 92 | . 97 91 Engine 10 | . 12 10 Leg 24 | . 25 24 Device 20 | . 22 19 Storage 12 | . 12 12 Ballistic Gun 23 | . 25 23 Peak Build Rating 9 | 7 8 9 Average Rating 7 | 5 7 7 On Entrance 5 | . 7 8 Avg Prop Armor Cover (%) . | . . . Naked Turns . | . . . Heaviest Build 21 | 20 21 21 Greatest Support 20 | 20 20 20 Greatest Overweight (x) 1 | . 1 1 Average Overweight (x) . | . . . Largest Inventory Capacity 10 | 10 10 10 Average Capacity 9 | 6 10 10 Most Carried 3 | 2 2 3 Average Carried 2 | 1 2 2 Final Capacity 10 | 10 10 10 Final Carried 2 | 2 2 1 Class Distribution -------------------- 100% | Hacker-Mutant Dominant Class ---------------- Hacker-Mutant | -10/Materials Hacker-Mutant | -10/Mines Resources | -11 -10 -10 ----------- Run | Yrd Mat Min Matter Collected 516 | 228 . 288 Remotely . | . . . Salvage Created 265 | . . 265 Parts 2 | . . 2 Haulers Intercepted . | . . . Recyclers Shooed . | . . . Parts Field Recycled . | . . . Retrieved Matter . | . . . Parts Self-Destructed . | . . . Prevented . | . . . Parts Restored . | . . . Kills | -11 -10 -10 ------- Run | Yrd Mat Min Combat Hostiles Destroyed 17 | . . 17 Guns 17 | . . 17 Classes Destroyed 2 | . . 2 Swarmer 2 | . . 2 Assembled 15 | . . 15 Best Kill Streak 12 | . . 12 Combat Bots Only 12 | . . 12 Max Kills in Single Turn 1 | . . 1 Gunslinging . | . . . Exploded . | . . . Melee . | . . . Uniques/NPCs Destroyed . | . . . Combat | -11 -10 -10 -------- Run | Yrd Mat Min Hostile Shots Fired 77 | . . 77 Missed 13 | . . 13 Hits 64 | . . 64 Melee 15 | . . 15 Projectile 49 | . . 49 AOE 18 | . . 18 Critical Strikes 4 | . . 4 Damage Taken 905 | . . 905 Core 253 | . . 253 Absorbed by Shields . | . . . Ignored by Resistances 555 | . . 555 Core Remaining (%) 100 | 100 . . Volleys Fired 55 | . . 55 Largest 2 | . . 2 Hottest 40 | . . 40 Shots Fired 91 | . . 91 Gun 91 | . . 91 Cannon . | . . . Launcher . | . . . Special . | . . . Kinetic 91 | . . 91 Thermal . | . . . Explosive . | . . . Electromagnetic . | . . . Robot Hit Streak 29 | . . 29 Robot Miss Streak 1 | . . 1 Penetration Max . | . . . Secondary Targets 4 | . . 4 Max Gunslinging Chain 1 | . . 1 Shots Hit Robots 81 | . . 81 Core Hits 37 | . . 37 Critical Kills . | . . . Critical Parts Destroyed . | . . . Critical Strikes . | . . . Melee Attacks . | . . . Impact . | . . . Slashing . | . . . Piercing . | . . . Sneak Attacks . | . . . Combat Hostiles . | . . . Follow-up Attacks . | . . . Damage Inflicted 898 | . . 898 Guns 898 | . . 898 Cannons . | . . . Explosions . | . . . Melee . | . . . Ramming . | . . . Kinetic 898 | . . 898 Thermal . | . . . Explosive . | . . . Electromagnetic . | . . . Impact . | . . . Slashing . | . . . Piercing . | . . . Highest Corruption 2 | . . 2 Average Corruption 1 | . . 1 Corruption Purged . | . . . Corruption Blocked . | . . . Effects 2 | . . 2 Heat Flow Errors 1 | . . 1 Misfires 1 | . . 1 Overload Shots . | . . . Overflow Damage . | . . . Projectiles . | . . . Explosions . | . . . Melee . | . . . Knockbacks . | . . . Impact . | . . . Kinetic . | . . . Secondary . | . . . Self-Inflicted Damage . | . . . Shots . | . . . Rammed . | . . . Targets Rammed . | . . . Kicked . | . . . Crushed . | . . . Highest Temperature 252 | . . 252 Average Temperature 83 | . . 83 Received Heat Transfer 120 | . . 120 Effects 2 | . . 2 Interference 2 | . . 2 Siege Activations . | . . . Martial Activations . | . . . Shielding Activations . | . . . Robots Disrupted . | . . . Combat Hostiles . | . . . Robots Corrupted . | . . . Combat Hostiles . | . . . Parts Fried . | . . . Impact Corruptions . | . . . Robots Melted . | . . . Combat Hostiles . | . . . Parts Melted . | . . . Heat Transferred . | . . . Parts Sabotaged . | . . . Parts Stolen . | . . . Parts Stripped . | . . . Power Chain Reactions . | . . . Alert | -11 -10 -10 ------- Run | Yrd Mat Min Maximum Alert Level . | . . . Low Security (%) 100 | 100 100 100 Level 1 . | . . . Level 2 . | . . . Level 3 . | . . . Level 4 . | . . . Level 5 . | . . . High Security . | . . . Max Security . | . . . Peak Influence 50 | . . 50 Initial . | . . . Average 2 | . . 3 Influence Increases 50 | . . 50 Destroy 0b10 Robot/C 40 | . . 40 Destroy Leader 10 | . . 10 Influence Decreases 50 | . . 50 Time Decay 50 | . . 50 Squads Dispatched . | . . . Investigation . | . . . Extermination . | . . . Reinforcement . | . . . Assault . | . . . Garrison . | . . . Intercept . | . . . Searches Triggered . | . . . Construction Impeded . | . . . Haulers Reinforced . | . . . Active Scanning Responses . | . . . Cargo Convoy Interrupts . | . . . Stealth | -11 -10 -10 --------- Run | Yrd Mat Min Distress Signals . | . . . Communications Jammed . | . . . Distress Signals . | . . . Times Spotted 19 | . . 19 Peak Tracking Total 6 | . . 6 Tactical Retreats . | . . . Traps | -11 -10 -10 ------- Run | Yrd Mat Min Traps Triggered . | . . . Indirectly . | . . . Trap Hack Attempts . | . . . Triggered . | . . . Disarmed . | . . . Reprogrammed . | . . . Reused . | . . . Traps Extracted . | . . . Installed . | . . . Triggered . | . . . Machines | -11 -10 -10 ---------- Run | Yrd Mat Min Machines Disabled . | . . . Max in Single Turn . | . . . Machines Repaired . | . . . Machines Dismantled . | . . . Machines Sabotaged . | . . . Overloaded Fab Kills . | . . . Hacking | -11 -10 -10 --------- Run | Yrd Mat Min Machines Accessed . | . . . Terminals . | . . . Fabricators . | . . . Repair Stations . | . . . Recycling Units . | . . . Scanalyzers . | . . . Garrison Access . | . . . Total Hacks . | . . . Successful . | . . . Failed . | . . . Catastrophic . | . . . Database Lockouts . | . . . Manual . | . . . Terminals . | . . . Fabricators . | . . . Repair Stations . | . . . Recycling Units . | . . . Scanalyzers . | . . . Garrison Access . | . . . Terminal Hacks . | . . . Fabricator Hacks . | . . . Repair Station Hacks . | . . . Recycling Unit Hacks . | . . . Scanalyzer . | . . . Garrison Access Hacks . | . . . Unauthorized Hacks . | . . . Terminals . | . . . Fabricators . | . . . Repair Stations . | . . . Recycling Units . | . . . Scanalyzers . | . . . Garrison Access . | . . . Data Cores Recovered . | . . . Used . | . . . Hacking Detections . | . . . Full Trace Events . | . . . Feedback Events . | . . . Feedback Blocked . | . . . Robot Schematics Acquired . | . . . Robots Built . | . . . Authchips . | . . . Time . | . . . Total Robot Build Rating . | . . . Part Schematics Acquired . | . . . Parts Built . | . . . Authchips . | . . . Time . | . . . Total Part Build Rating . | . . . Part Studies Acquired . | . . . Parts Repaired . | . . . Time . | . . . Parts Recycled . | . . . Recycled Matter . | . . . Retrieved Matter . | . . . Retrieved Components . | . . . Parts Scanalyzed . | . . . Part Schematics Acquired . | . . . Parts Damaged . | . . . Bothacking | -11 -10 -10 ------------ Run | Yrd Mat Min Used RIF Installer . | . . . Robots Hacked . | . . . Non-combat . | . . . Combat . | . . . Robot Hacks Applied . | . . . Relay Couplers Released . | . . . Fabnet Peak Effective % . | . . . Robots Rewired . | . . . Allies Hacked . | . . . Hacks Repelled . | . . . Allies | -11 -10 -10 -------- Run | Yrd Mat Min Total Allies . | . . . Largest Group . | . . . Highest-Rated Group . | . . . Highest-Rated Ally . | . . . Total Orders . | . . . Ally Attacks . | . . . Total Damage . | . . . Kills . | . . . Allies Corrupted . | . . . Allies Melted . | . . . Intel | -11 -10 -10 ------- Run | Yrd Mat Min Active Infowar (turns) 766 | 58 113 595 Structural 759 | 58 113 588 Seismic 570 | . 102 468 Robot Analysis Total . | . . . Derelict Logs Recovered . | . . . Drone Launches . | . . . Drone Recoveries . | . . . Exploration | -11 -10 -10 ------------- Run | Yrd Mat Min Turns Passed 855 | 71 113 671 Spaces Moved 382 | 50 27 305 Core 4 | 4 . . Treads . | . . . Legs 378 | 46 27 305 Wheels . | . . . Hover . | . . . Flight . | . . . Fastest Speed 50 | 50 120 120 Average Speed 157 | 114 166 163 Slowest Speed 190 | 120 190 190 Overloaded Moves . | . . . Propulsion Burnouts . | . . . Robots Hopped . | . . . Potential Cave-ins . | . . . Cave-ins Triggered . | . . . Exploration Rate (%) 23 | 4 12 55 Regions Visited 2 Branch Regions 1 Pre-discovered Areas . | . . . Known Exits Taken 2 | 1 1 . Unknown Exits Taken . | . . . Scrap Searched 1 | . . 1 Spaces Dug . | . . . Terrain Destroyed . | . . . Melee . | . . . Projectile . | . . . AOE . | . . . Terrain Rammed . | . . . Walls Destroyed . | . . . Machines Disabled . | . . . Actions | -11 -10 -10 --------- Run | Yrd Mat Min Total 547 | 60 95 392 Wait 95 | 2 68 25 Move 380 | 49 26 305 Hop . | . . . Pick Up 3 | 2 . 1 Fast Attach 10 | 7 1 2 Attach 3 | . . 3 Detach . | . . . Swap 1 | . . 1 Drop . | . . . Fire 55 | . . 55 Melee . | . . . Ram . | . . . Kick . | . . . Crush . | . . . Escape Stasis . | . . . Rewire . | . . . Trap . | . . . Miscellaneous . | . . . Route ------- -11/Scrapyard -10/Materials -10/Mines History --------- Turn | Location | Event 9 | -11/Scrapyard | Identified exit to Materials 9 | -11/Scrapyard | Discovered exit to Materials (range 15) 72 | -11/Scrapyard | Entered Materials 72 | -10/Materials | Evolved 1 slot: Utility x1 73 | -10/Materials | Met a group of wandering Federalists 90 | -10/Materials | Identified exit to Mines 90 | -10/Materials | Discovered exit to Mines (range 15) 185 | -10/Materials | Entered Mines 309 | -10/Mines | Found a damaged Exp. Sensor Array with a note attached 313 | -10/Mines | Build established: Hacker-Mutant 315 | -10/Mines | Found Prototype Device 387 | -10/Mines | Assembled infested the area 392 | -10/Mines | Assisted by a Guerilla fighting off Assembled 683 | -10/Mines | Destroyed 12 combat bots 684 | -10/Mines | Lost 3 parts (1p2u) 830 | -10/Mines | Core integrity fell below 50% 839 | -10/Mines | Core integrity fell below 20% 856 | -10/Mines | Destroyed by D-53 Grenadier with Mini Grenade Launcher Last Messages --------------- 00829_ U-05 Engineer lays Concrete. 00829_ K-01 Serf destroyed. 00830_ U-05 Engineer lays Concrete. 00833_ The unstable cave ceiling collapses. 00833_ U-05 Engineer lays Concrete. 00835_ Lgt. Assault Rifle destroyed. 00836_ U-05 Engineer lays Concrete. 00837_ The unstable cave ceiling collapses. 00837_ Assault Rifle destroyed. 00837_ Aluminum Leg destroyed. 00837_ U-05 Engineer lays Concrete. 00839_ D-53 Grenadier destroyed. 00839_ U-05 Engineer lays Concrete. 00841_ The unstable cave ceiling collapses. 00841_ U-05 Engineer destroyed. 00842_ The unstable cave ceiling collapses. 00843_ Ion Engine destroyed. 00844_ The unstable cave ceiling collapses. 00848_ Assault Rifle destroyed. 00850_ The unstable cave ceiling collapses. Map ----- +----------------------------------------------------+ | ###????### ###??????????## ##??????????? | | # ##?????## #####?????????## ##??????????? | | ## ##?????## ################ ##??????????? | | ## ###?????## ############# ##??????????? | | # #####?????## #### ##??????????? | | # ####??????##### #### ###########??????????? | | # ####??????##### #### ###########??????????? | | # #####???????##!%#### #####????????????????? | | #############[ ##????????????????? | | ################### ##??????? ???????? | | ### ## ########### ##??????? ?????? | | ##### *%* ####????## ##?????? ?????? | | ###### % ######### ##???## ????? | | ###?#### ######## %##??### ! %?????? | | ###??### ### ## =%%*=###### ??????? | | ###?## ##### ## #### ##### =% ##??????? | | ##### ##### ### = ###??????? | | ##### ####### ######## ###???????? | | # ###################### # ##????????? | | ## ###?###### ########### # !! ####???????? | | ######??#### ##???#### %! ####??????? | | ?####???### ###?#### != ###??????? | | ???????### ####### *| ##??????? | | ???????### ##### %=%k ??? | | ???????## #####% * ??? | | ???????## @ ###### % |! ??? | | ???????## ##### d ####?????? =% ???? | | ???????### # ###### ####??????? ### ???? | | ???????### ## ###?### ####????????#####???? | | ????????## ## ##??##### # ####?????????????????? | | ????????## ##???###########??????????????????? | | ????????##### ##?????########???????????????????? | | #???????##### ##????????????????????????????????? | | ##???????#### ##????????????????????????????????? | | ##???????## ##????????????????????????????????? | | ##???????## #######T ????????????????????????????? | | ###??????## ######## ???? ##?????????????????????? | | #######??## ##?????????????????????? | | ########## ### #### ???? ##?????????????????????? | | ###### ### #####????????????????????????????? | | ! ### ## ###??????????????????????????????? | | ####?????????????????????????????? | | ### ###?????????????????????????????? | | ##### ##?????????????????????????????? | | ####### ! ##?????????????????????????????? | | ###?### ###????????????????????????????? | | ##???### ## ###????????????????????????????? | | ?????######## ##????????????????????????????? | | ??????#######= ##????????????????????????????? | | ???????????### ##????????????????????????????? | +----------------------------------------------------+ Best States ------------- Heat Dissipation 25 Energy Generation 10 Energy Capacity 250 Matter Stores 300 Matter Capacity 300 Sight Range 16 Terrain Scan Density 10 Resistance: KI 35 Resistance: TH 35 Resistance: EX 35 Resistance: EM 35 Resistance: I 35 Resistance: S 35 Resistance: P 35 Evasion (%) 55 Offensive Hacking 20 Item Schematics ----------------- None Robot Schematics ------------------ None Fabricated ------------ Nothing Repaired ---------- Nothing Studied --------- None Alien Tech Used ----------------- None Achievements -------------- None Challenges ------------ None Game ------ Seed LaunchMasterCasing Manual? 0 Play Time 00:07:25 Cumulative 172.7 hours Start 2026.02.03 @ 18:18:30 End 2026.02.03 @ 18:23:41 Sessions 1 Manual Loads 0 Difficulty Explorer Special Mode None Game No. 313 Rogue 216 Adventurer 15 Explorer 82 Win Type - Total 13 Types 13/0/0/0/0/0/0/0/0/0 Lore% 54 Gallery% 61 Achievement% 45 Wizard Run 0 Options --------- Layout 0 ASCII 0 Keyboard 1 Movement Numpad Keybinds 0 Fullscreen 2 Font 18/SmallcapsGlow Map View 76x50 Zoom Use 0% Tactical HUD 1 Map Filters NONE Filters NONE Steam 1 RUN: 2119c5c5-af7e-4914-90a9-ae6985da0e6d